bitfinex/quotes_ETHUSD_20241120
["timestamp","ask_amount","ask_price","bid_price","bid_amount"]
[1732105006148,7.27631622,3093.5,3093.0,0.8126]
[1732105006347,3.23272,3093.4,3093.0,0.8126]
[1732105006573,3.78261,3093.5,3093.0,0.8126]
[1732105006779,3.78261,3093.5,3093.0,1.45921]
[1732105006995,3.23258,3093.5,3093.1,0.210583]
[1732105007151,3.23258,3093.5,3093.0,0.8126]
[1732105007331,3.23258,3093.5,3093.0,1.45921]
[1732105007535,0.55,3093.7,3093.4,0.64652]
[1732105007762,7.2671506,3094.0,3093.5,0.794]
[1732105007971,3.23245,3093.7,3093.5,0.794]
[1732105008494,3.2322,3093.9,3093.5,0.794]
[1732105008639,3.36232745,3093.7,3093.5,0.794]
[1732105009035,3.23247,3093.6,3093.5,0.794]
[1732105009342,3.2326,3093.5,3093.2,0.92467255]
[1732105010075,6.59469745,3093.7,3093.2,0.92467255]
[1732105010575,3.23254,3093.6,3093.2,0.92467255]
[1732105010879,6.59486745,3093.6,3093.2,0.92467255]
[1732105011186,3.23262,3093.5,3093.2,0.7588]
[1732105011353,6.59488745,3093.6,3093.2,0.7588]
[1732105011552,3.23256,3093.6,3093.2,0.7588]
[1732105011887,3.23261,3093.5,3093.2,0.7588]
[1732105012036,3.23274,3093.4,3093.2,0.7588]
[1732105012430,3.23269,3093.4,3093.2,0.7588]
[1732105013365,3.23289,3093.2,3093.1,1.6164]
[1732105014843,7.14434347,3093.2,3093.1,1.6164]
[1732105015471,3.78289,3093.2,3093.1,1.6164]
[1732105016283,4.60639,3093.2,3093.1,1.6164]
[1732105016981,8.63865522,3093.2,3093.1,1.6164]
[1732105017197,9.08665357,3093.2,3093.1,1.6164]
[1732105017612,13.11919131,3093.2,3093.1,1.6164]
[1732105018093,9.08665357,3093.2,3093.1,1.6164]
[1732105018252,13.11909264,3093.2,3093.1,1.6164]
[1732105018447,10.81532907,3093.2,3093.1,1.6164]
[1732105018669,6.78289,3093.2,3093.1,1.6164]
[1732105018983,10.81537471,3093.2,3093.1,1.6164]
[1732105019170,3.36069455,3093.3,3093.1,1.6164]
[1732105019382,3.23285,3093.3,3093.1,1.6164]
[1732105019748,3.23289,3093.2,3093.1,1.6164]
[1732105019975,8.08187471,3093.2,3093.1,1.6164]
[1732105020174,4.04939,3093.2,3093.1,1.6164]
[1732105020414,11.63187471,3093.2,3093.1,1.6164]
[1732105020720,9.78222399,3093.2,3093.1,1.6164]
[1732105021013,13.8141668,3093.2,3093.1,1.6164]
[1732105021220,13.81424372,3093.2,3093.1,1.6164]
[1732105021512,9.78222399,3093.2,3093.1,1.6164]
[1732105022762,13.81424372,3093.2,3093.1,1.6164]
[1732105023043,9.78222399,3093.2,3093.1,1.6164]
[1732105023410,13.81443932,3093.2,3093.1,1.6164]
[1732105023611,9.78222399,3093.2,3093.1,1.6164]
[1732105024018,14.48624701,3093.2,3093.1,1.6164]
[1732105024236,18.64222399,3093.2,3093.1,1e-07]
[1732105024435,3.23436,3091.8,3091.7,0.7823]
[1732105024958,3.23417,3092.0,3091.7,0.7823]
[1732105024959,3.234,3092.2,3091.7,0.7823]
[1732105025446,6.4687,3091.9,3091.7,0.7823]
[1732105025655,3.23434,3091.9,3091.7,0.7823]
[1732105025967,3.23436,3091.8,3091.7,0.7823]
[1732105026242,3.23386,3092.3,3091.7,1.42917]
[1732105026428,3.23386,3092.3,3091.8,0.207608]
[1732105026644,3.35967437,3092.5,3092.1,0.64679]
[1732105026816,4.03160925,3092.8,3092.4,0.7519]
[1732105026817,3.35967437,3092.8,3092.4,0.7519]
[1732105027139,3.23342,3092.7,3092.4,0.7519]
[1732105028405,3.23352,3092.6,3092.4,0.7519]
[1732105029141,6.59274408,3092.8,3092.4,0.7519]
[1732105029381,3.35938408,3092.9,3092.5,0.64671]
[1732105029566,7.2641809,3093.2,3092.5,0.64671]
[1732105029567,3.23311,3093.0,3092.5,0.851245]
[1732105029944,3.23347,3092.7,3092.4,0.7519]
[1732105030154,6.59265408,3092.9,3092.4,0.7519]
[1732105030490,3.23337,3092.8,3092.4,0.7519]
[1732105030844,3.35938408,3093.0,3092.5,0.64671]
[1732105031083,3.23305,3093.1,3092.5,0.64671]
[1732105031084,6.59243408,3093.1,3092.6,0.64669]
[1732105031310,6.59243408,3093.1,3092.6,0.85445332]
[1732105031450,3.23305,3093.1,3092.6,0.20776332]
[1732105031648,3.35938408,3093.3,3093.0,0.6466]
[1732105031854,3.35938408,3093.5,3093.2,0.8059]
[1732105032472,6.59195408,3093.6,3093.2,0.8059]
[1732105032695,3.35938408,3093.5,3093.2,0.8059]
[1732105032892,0.55,3093.6,3093.2,0.8059]
[1732105033198,3.23238,3093.7,3093.2,1.45247]
[1732105033360,6.46483,3093.7,3093.2,1.45247]
[1732105033561,3.23278,3093.4,3093.2,0.8059]
[1732105033890,3.23279,3093.3,3092.9,0.8059]
[1732105034261,5.16030362,3093.7,3092.9,0.8059]
[1732105034902,3.23258,3093.5,3093.0,0.6466]
[1732105035810,4.03474453,3093.7,3093.0,0.6466]
[1732105035811,7.26719453,3093.7,3093.0,0.6466]
[1732105036009,3.23256,3093.6,3093.0,0.6466]
[1732105036321,6.46511,3093.6,3093.0,0.6466]
[1732105036498,3.23264,3093.5,3093.0,0.6466]
[1732105036707,3.23276,3093.4,3092.9,0.8059]
[1732105036903,3.23276,3093.4,3093.1,1.6164]
[1732105037115,3.555785,3093.6,3093.1,1.6164]
[1732105037317,6.46511,3093.6,3093.1,1.6164]
[1732105037513,3.23247,3093.6,3093.1,1.6164]
[1732105037819,3.23281,3093.3,3093.1,1.6164]
[1732105037999,3.23258,3093.5,3093.1,1.6164]
[1732105038000,6.46526,3093.5,3093.1,1.6164]
[1732105038196,3.78289,3093.2,3093.1,1.6164]
[1732105038428,11.51920253,3093.2,3093.1,1.6164]
[1732105038636,11.52174957,3093.2,3093.1,1.6164]
[1732105038858,7.484458,3093.2,3093.1,1.6164]
[1732105039856,12.95803341,3093.2,3093.1,1.6164]
[1732105040052,8.247958,3093.2,3093.1,1.6164]
[1732105040262,17.107958,3093.2,3093.1,1.6164]
[1732105044776,20.04078304,3093.2,3093.1,1.6164]
[1732105045331,25.60551106,3093.2,3093.1,1.6164]
[1732105045673,3.23415,3092.0,3091.9,0.813]
[1732105045838,3.23415,3092.0,3091.3,0.8115]
[1732105046038,3.23415,3092.0,3091.4,0.64694]
[1732105046467,3.23415,3092.0,3091.3,0.8115]
[1732105046666,3.2345,3091.7,3091.3,1.02486592]
[1732105047385,7.64749114,3092.1,3091.3,0.8115]
[1732105047539,3.23474,3091.5,3091.3,0.8115]
[1732105048177,3.23478,3091.4,3091.3,0.8115]
[1732105048475,3.23464,3091.6,3091.3,0.8115]
[1732105048678,3.23478,3091.4,3091.3,0.8115]
[1732105048847,3.23464,3091.6,3091.3,0.8115]
[1732105048848,6.4693,3091.6,3091.3,0.8115]
[1732105049045,3.23468,3091.5,3091.3,0.8115]
[1732105049984,3.23468,3091.5,3091.0,0.64703]
[1732105049985,0.55,3091.2,3090.5,0.7927]
[1732105050199,6.23519,3091.0,3090.5,0.7927]
[1732105050354,0.55,3090.7,3090.5,0.7927]
[1732105050539,3.23593,3090.3,3090.2,0.7927]
[1732105052038,3.23593,3090.3,3089.5,0.64734]
[1732105052039,3.23593,3090.3,3089.6,1.4740887]
[1732105052272,3.23603,3090.2,3089.7,0.21214287]
[1732105054149,3.23618,3090.1,3089.7,0.21214287]
[1732105054456,3.23635,3089.9,3089.6,0.7944]
[1732105055286,3.23645,3089.8,3089.6,0.7944]
[1732105055465,3.23656,3089.7,3089.6,0.7944]
[1732105055989,3.2365,3089.8,3089.6,0.7944]
[1732105056409,4.01938,3090.4,3089.6,0.7944]
[1732105056410,3.2362,3090.1,3089.6,0.7944]
[1732105056698,12.4707336,3090.7,3089.4,0.64735]
[1732105056699,3.23535,3090.9,3090.2,0.8073]
[1732105056856,4.02045828,3091.1,3090.6,0.6471]
[1732105057055,4.02045828,3091.1,3090.9,0.8073]
[1732105058002,7.25555828,3091.1,3090.9,0.8073]
[1732105058168,4.02045828,3091.1,3090.9,0.8073]
[1732105058502,3.23499,3091.2,3090.9,0.8073]
[1732105058860,6.46992,3091.3,3090.9,0.8073]
[1732105059055,3.23494,3091.3,3090.9,0.8073]
[1732105059287,3.23529,3091.0,3090.4,1.47825]
[1732105059501,0.55,3091.2,3090.4,0.8311]
[1732105059656,0.55,3091.2,3090.5,0.64713]
[1732105059859,0.7599,3091.5,3090.7,0.64709]
[1732105059860,3.23493,3091.3,3090.7,0.64709]
[1732105060060,3.23451,3091.7,3091.1,0.64701]
[1732105060264,3.2343,3091.9,3091.2,0.802]
[1732105060528,3.6107336,3092.3,3091.2,0.802]
[1732105060529,3.23393,3092.3,3091.6,0.6469]
[1732105060662,3.23406,3092.1,3091.7,0.802]
[1732105060861,3.23436,3091.8,3091.7,0.802]
[1732105061207,3.23436,3091.8,3091.3,0.7559]
[1732105061505,3.23413,3092.1,3091.4,1.29386]
[1732105061799,3.23426,3091.9,3091.3,0.78824526]
[1732105062000,3.23438,3091.8,3091.3,0.7559]
[1732105062513,3.23415,3092.1,3091.5,0.64693]
[1732105062800,3.23415,3092.1,3091.6,0.64691]
[1732105063311,3.23373,3092.4,3091.7,0.7931]
[1732105063597,3.23384,3092.3,3091.8,0.67918846]
[1732105063797,3.23384,3092.3,3091.8,0.64685]
[1732105064800,3.23353,3092.6,3092.1,0.7931]
[1732105065314,3.8063,3093.0,3092.1,0.7931]
[1732105065315,7.03944,3093.0,3092.1,0.7931]
[1732105065471,3.0,3092.9,3092.1,0.7931]
[1732105065664,3.23388,3092.3,3092.1,0.7931]
[1732105066277,3.23401,3092.2,3091.7,0.8135]
[1732105066791,3.23396,3092.2,3091.7,0.8135]
[1732105066992,3.23406,3092.1,3091.7,0.8135]
[1732105067509,3.78391,3092.3,3091.7,0.8135]
[1732105067713,4.162288,3092.3,3091.7,0.8135]
[1732105067926,0.928378,3092.3,3091.7,0.8135]
[1732105068215,0.55,3092.6,3092.1,0.64679]
[1732105068504,3.23322,3092.9,3092.3,0.64675]
[1732105068679,0.45373727,3092.8,3092.3,0.64675]
[1732105069304,0.45373727,3092.8,3092.4,0.64673]
[1732105069605,3.23304,3093.1,3092.6,0.6467]
[1732105069963,3.23304,3093.1,3092.4,0.64673]
[1732105070193,3.959238,3093.1,3092.5,0.64672]
[1732105070703,0.55,3093.0,3092.5,0.64672]
[1732105071406,0.55,3092.8,3092.3,0.64675]
[1732105071712,0.55,3092.6,3092.4,1.6169]
[1732105073095,3.23362,3092.5,3092.4,1.6169]
[1732105073406,3.78362,3092.5,3092.4,1.6169]
[1732105073704,4.485324,3092.5,3092.4,1.6169]
[1732105074416,3.78362,3092.5,3092.4,1.6169]
[1732105074713,0.55,3093.0,3092.6,0.6467]
[1732105074896,0.8053,3093.1,3092.6,0.6467]
[1732105074897,3.23301,3093.1,3092.6,0.6467]
[1732105075098,4.19964,3093.0,3092.5,0.771]
[1732105075286,3.23323,3092.9,3092.5,0.771]
[1732105076574,3.23281,3093.3,3092.6,0.64669]
[1732105076770,0.55,3093.2,3092.8,0.64664]
[1732105076970,3.23262,3093.5,3092.5,0.771]
[1732105076971,3.0,3093.4,3092.5,0.8033295]
[1732105077209,3.0,3093.6,3093.0,0.64661]
[1732105077434,6.23254,3093.6,3093.0,0.64661]
[1732105077718,3.0,3093.4,3093.0,0.64661]
[1732105077921,3.0,3093.4,3093.0,0.5]
[1732105078389,8.86,3093.8,3093.0,0.5]
[1732105078390,3.23213,3094.0,3093.2,0.64656]
[1732105078723,3.23198,3094.1,3093.5,0.6465]
[1732105078930,3.23206,3094.0,3093.4,0.64653]
[1732105079279,3.23206,3094.0,3093.5,0.64651]
[1732105079483,3.6107336,3093.9,3093.3,0.8272]
[1732105079682,3.23286,3093.3,3093.0,1.3108]
[1732105079887,3.233,3093.1,3093.0,0.5]
[1732105080196,3.783,3093.1,3093.0,0.5]
[1732105080780,11.2223336,3093.1,3093.0,0.5]
[1732105081121,11.2223336,3093.1,3092.6,1.6168]
[1732105081122,7.61202,3092.7,3092.6,1.6168]
[1732105081283,3.0,3091.9,3091.1,0.03233534]
[1732105081480,3.78453,3091.7,3091.1,0.64701]
[1732105081816,3.23492,3091.3,3090.9,0.7984]
[1732105082130,3.23474,3091.5,3090.9,0.7984]
[1732105082428,3.23496,3091.3,3090.9,0.7984]
[1732105082596,3.78446,3091.7,3090.9,0.7984]
[1732105082798,3.23515,3091.1,3090.9,0.7984]
[1732105083012,3.23519,3091.0,3090.9,0.7984]
[1732105083230,3.23492,3091.3,3090.1,0.67956079]
[1732105083231,3.23558,3090.7,3090.2,0.8238]
[1732105083520,3.23558,3090.7,3090.2,1.471]
[1732105084333,3.23541,3090.8,3090.2,1.471]
[1732105084490,3.23541,3090.8,3090.2,1.50335379]
[1732105084689,3.23557,3090.7,3090.3,1.6179]
[1732105084927,3.23557,3090.7,3090.3,1.93002638]
[1732105085440,3.23541,3090.8,3090.3,1.93002638]
[1732105086092,3.23554,3090.7,3090.3,1.93002638]
[1732105086292,3.23541,3090.8,3090.3,1.93002638]
[1732105086929,3.78503,3091.2,3090.5,0.7762]
[1732105087154,3.2348,3091.4,3090.9,0.7762]
[1732105087295,3.2348,3091.4,3090.9,1.42325]
[1732105087489,3.23467,3091.5,3090.9,1.42325]
[1732105087749,1.54573336,3092.0,3090.9,1.42325]
[1732105087750,3.23418,3092.0,3091.3,0.64697]
[1732105087952,3.23418,3092.0,3091.5,0.7762]
[1732105088130,3.23436,3091.8,3091.5,0.7762]
[1732105088330,3.23418,3092.0,3091.5,0.7762]
[1732105088812,3.23457,3091.6,3091.5,0.7762]
[1732105088997,3.23457,3091.6,3091.0,0.7762]
[1732105089201,3.23473,3091.5,3091.0,0.7762]
[1732105089577,0.55,3091.7,3091.1,0.64701]
[1732105089715,3.78453,3091.7,3091.1,0.64701]
[1732105089899,3.78453,3091.7,3091.1,0.854036]
[1732105091472,3.23464,3091.6,3091.1,0.207026]
[1732105092576,3.23464,3091.6,3091.2,1.6174]
[1732105093381,3.23415,3092.0,3091.4,0.64695]
[1732105093531,0.55,3091.9,3091.4,0.64695]
[1732105093731,0.55,3091.9,3091.5,1.6173]
[1732105093976,3.78428,3091.9,3091.5,1.6173]
[1732105094274,3.23437,3091.8,3091.5,1.6173]
[1732105094445,3.23453,3091.7,3091.5,1.6173]
[1732105094830,3.23457,3091.6,3091.5,1.6173]
[1732105095031,4.431464,3091.6,3091.5,1.6173]
[1732105095231,7.431464,3091.6,3091.5,1.6173]
[1732105095660,3.23419,3092.0,3091.5,1.6173]
[1732105095869,3.23418,3092.0,3091.6,0.7692]
[1732105096070,3.23399,3092.2,3091.6,1.41611]
[1732105096249,3.23412,3092.1,3091.6,0.7692]
[1732105096465,3.23399,3092.2,3091.6,0.7692]
[1732105096670,3.23431,3091.9,3091.6,0.7692]
[1732105096966,3.23432,3091.9,3091.6,0.7692]
[1732105097545,3.78421,3092.0,3091.6,0.7692]
[1732105097783,3.23427,3091.9,3091.6,0.7692]
[1732105098637,3.78438,3091.8,3091.7,1.6172]
[1732105098835,4.162807,3091.8,3091.7,1.6172]
[1732105099054,3.23427,3091.9,3091.7,1.6172]
[1732105099251,15.4807336,3092.6,3091.7,1.6172]
[1732105099252,3.78423,3092.0,3091.7,1.6172]
[1732105100413,3.23436,3091.8,3091.7,1.6172]
[1732105100893,3.78436,3091.8,3091.7,1.6172]
[1732105101193,4.809644,3091.8,3091.7,1.6172]
[1732105101491,3.78436,3091.8,3091.7,1.6172]
[1732105101702,3.23426,3091.9,3091.7,1.6172]
[1732105102005,0.55,3092.0,3091.7,1.6172]
[1732105102154,3.23435,3091.9,3091.7,1.6172]
[1732105102354,0.323435,3091.9,3091.7,1.6172]
[1732105102576,0.55,3091.9,3091.8,0.7798]
[1732105102989,0.55,3092.0,3091.8,0.7798]
[1732105103369,3.78415,3092.0,3091.8,0.7798]
[1732105104493,3.78415,3092.0,3091.9,1.6171]
[1732105105214,0.55,3092.0,3091.9,1.6171]
[1732105105911,3.78415,3092.0,3091.9,1.6171]
[1732105107265,4.485975,3092.0,3091.9,1.6171]
[1732105108400,4.485975,3092.0,3090.4,1.45686]
[1732105108401,0.55,3090.9,3090.4,1.45686]
[1732105108608,3.78538,3090.9,3090.4,1.45686]
[1732105108760,3.23551,3090.7,3090.4,0.8097]
[1732105109361,3.23551,3090.7,3090.5,1.6178]
[1732105109786,3.23541,3090.8,3090.5,1.6178]
[1732105110523,4.60551,3090.6,3090.5,1.6178]
[1732105111772,7.60551,3090.6,3090.5,1.6178]
[1732105113477,0.7701,3089.7,3088.6,0.64752]
[1732105113809,0.7701,3089.7,3088.4,0.64756]
[1732105113810,3.23731,3089.0,3088.4,0.64756]
[1732105114026,3.23731,3089.0,3088.5,0.64756]
[1732105114206,3.23753,3088.8,3088.2,0.7889]
[1732105114414,3.23768,3088.7,3088.2,0.7889]
[1732105114792,3.23768,3088.7,3088.3,1.6189]
[1732105115099,6.47538,3088.7,3088.3,1.6189]
[1732105115440,3.23768,3088.7,3088.3,1.6189]
[1732105115635,0.55,3088.8,3088.4,0.97135]
[1732105116407,3.7867,3089.6,3089.0,0.97116]
[1732105116604,3.7867,3089.6,3089.0,0.194241]
[1732105116906,0.8293,3090.0,3089.6,0.97098]
[1732105117101,3.23625,3090.0,3089.4,0.97104]
[1732105117550,3.23608,3090.2,3089.4,1.165256]
[1732105117706,3.23608,3090.2,3089.4,0.97104]
[1732105118041,3.23632,3090.0,3089.4,0.97104]
[1732105118250,3.23632,3090.0,3089.2,0.03236512]
[1732105118419,3.23608,3090.2,3089.2,0.03236512]
[1732105118619,0.8293,3090.3,3089.7,0.97095]
[1732105118620,3.236,3090.3,3089.7,0.97095]
[1732105118815,3.23612,3090.2,3089.5,0.97101]
[1732105119048,3.23593,3090.3,3089.3,1.00344283]
[1732105119216,3.23593,3090.3,3089.2,0.9711]
[1732105119217,3.23638,3089.9,3089.2,0.9711]
[1732105119416,3.23638,3089.9,3089.3,0.97107]
[1732105119617,3.23617,3090.1,3089.3,2.58957]
[1732105119941,3.78632,3090.0,3089.3,2.58957]
[1732105120145,6.23601,3090.3,3089.7,0.97094]
[1732105120322,3.2361,3090.2,3089.5,0.971]
[1732105120849,3.2361,3090.2,3089.6,2.58929]
[1732105121661,3.2361,3090.2,3089.6,1.6183]
[1732105121662,3.23635,3089.9,3089.6,1.6183]
[1732105121805,0.55,3089.8,3089.6,1.6183]
[1732105122006,0.55,3089.7,3089.6,1.6183]
[1732105122650,0.55,3089.8,3089.6,1.6183]
[1732105122818,4.165203,3089.7,3089.6,1.6183]
[1732105125621,0.928643,3089.7,3089.6,1.6183]
[1732105125921,3.23643,3089.9,3089.6,1.6183]
[1732105125922,0.55,3089.8,3089.6,1.6183]
[1732105126220,3.23627,3090.0,3089.6,1.6183]
[1732105126421,0.55,3089.9,3089.6,1.6183]
[1732105126813,0.55,3090.1,3089.6,1.6183]
[1732105127133,0.55,3090.0,3089.6,2.3939]
[1732105128145,3.78627,3090.0,3089.6,2.3939]
[1732105128848,3.23635,3089.9,3089.6,2.3939]
[1732105129072,0.55,3089.8,3089.6,1.6183]
[1732105130176,3.23618,3090.1,3089.6,1.6183]
[1732105130177,0.55,3090.0,3089.6,1.6183]
[1732105130340,0.55,3089.8,3089.6,1.6183]
[1732105130726,11.5664286,3089.7,3089.6,1.6183]
[1732105137399,7.165195,3089.7,3089.6,1.6183]
[1732105137989,11.5869286,3089.7,3089.6,1.6183]
[1732105139201,7.165195,3089.7,3089.6,1.6183]
[1732105139362,6.78656,3089.7,3089.6,1.6183]
[1732105140003,3.23594,3090.3,3089.6,2.3859]
[1732105140150,3.23557,3090.7,3090.1,0.64722]
[1732105140348,3.6107336,3090.5,3089.9,0.7553]
[1732105140593,3.23594,3090.3,3089.9,0.7553]
[1732105141113,3.23588,3090.4,3089.9,0.7553]
[1732105141249,3.23595,3090.3,3089.9,0.7553]
[1732105141445,3.23602,3090.3,3089.9,0.7553]
[1732105141661,3.23572,3090.5,3090.0,1.6181]
[1732105142106,3.236,3090.3,3090.0,1.6181]
[1732105142316,3.23614,3090.1,3090.0,1.6181]
[1732105142464,3.78614,3090.1,3090.0,1.6181]
[1732105143175,10.3968736,3090.1,3090.0,1.6181]
[1732105143374,11.2126736,3090.1,3090.0,1.6181]
[1732105143589,20.0826736,3090.1,3090.0,1.6181]
[1732105143801,22.53361574,3090.1,3090.0,1.6181]
[1732105146294,22.53361574,3090.1,3088.9,0.765]
[1732105146485,3.23729,3089.0,3088.9,0.765]
[1732105146881,0.55,3088.6,3088.3,0.8252]
[1732105147120,3.78771,3088.6,3088.3,0.8252]
[1732105147328,3.78792,3088.4,3088.3,0.8252]
[1732105148157,0.55,3088.1,3087.6,0.64773]
[1732105148450,0.55,3088.1,3087.9,0.64767]
[1732105148604,0.55,3088.3,3087.8,0.6477]
[1732105148806,3.78803,3088.3,3087.8,0.6477]
[1732105149001,0.55,3088.3,3087.8,0.6477]
[1732105149435,0.55,3088.1,3087.7,0.8318]
[1732105149760,0.55,3088.1,3087.9,1.6191]
[1732105149925,0.55,3088.1,3087.9,2.02611]
[1732105150127,0.55,3088.3,3087.9,0.40701]
[1732105150321,3.78803,3088.3,3087.9,0.40701]
[1732105150522,3.78803,3088.3,3087.7,0.8318]
[1732105150523,0.55,3088.3,3088.0,1.6191]
[1732105150849,0.55,3088.1,3088.0,1.6191]
[1732105151356,0.55,3088.3,3088.0,1.6191]
[1732105151853,0.55,3088.1,3088.0,1.6191]
[1732105152223,3.78823,3088.1,3088.0,1.6191]
[1732105155809,0.55,3088.3,3088.0,1.6191]
[1732105156017,0.55,3088.3,3088.0,1.84578]
[1732105156256,0.55,3088.1,3088.0,1.84578]
[1732105156420,0.55,3088.1,3088.0,1.6191]
[1732105156926,3.55,3088.7,3088.1,0.64764]
[1732105157132,6.7876,3088.7,3088.2,0.226674]
[1732105157329,6.7876,3088.7,3088.1,0.64763]
[1732105157534,3.23777,3088.6,3088.1,0.64763]
[1732105157709,0.55,3088.5,3088.2,0.226673]
[1732105157908,3.78787,3088.5,3088.2,0.226673]
[1732105158461,0.55,3088.5,3088.2,0.226673]
[1732105158756,8.86,3089.0,3088.6,0.64752]
[1732105158962,3.34314615,3089.6,3088.6,0.0323734]
[1732105159183,3.23781,3088.5,3088.3,1.619]
[1732105160178,3.23777,3088.6,3088.3,1.619]
[1732105160330,3.55,3088.4,3088.3,1.7809]
[1732105160728,3.55,3088.4,3088.3,1.619]
[1732105161231,6.78792,3088.4,3088.3,1.619]
[1732105162062,3.34553724,3089.4,3088.4,0.8183]
[1732105162260,3.23673,3089.6,3089.0,0.64744]
[1732105162561,3.23653,3089.8,3089.2,0.64739]
[1732105162925,3.23663,3089.7,3089.1,0.8183]
[1732105163090,3.23653,3089.8,3089.2,0.211318]
[1732105163759,0.55,3089.7,3089.2,0.211318]
[1732105163961,0.55,3089.7,3089.4,0.64737]
[1732105164173,0.55,3089.7,3089.2,0.211318]
[1732105164174,3.34553724,3090.5,3089.5,0.80876231]
[1732105164374,3.23568,3090.6,3090.0,0.7764]
[1732105164574,3.23589,3090.4,3090.0,0.7764]
[1732105164882,3.23565,3090.6,3090.0,0.7764]
[1732105165252,3.23574,3090.5,3090.0,0.7764]
[1732105166291,0.55,3090.4,3090.0,0.7764]
[1732105166582,3.0,3090.5,3089.8,0.03235999]
[1732105166831,3.34553724,3091.0,3090.5,0.64714]
[1732105167120,3.34553724,3091.1,3090.3,0.8179]
[1732105167290,3.23557,3090.7,3090.3,0.8179]
[1732105167623,3.23573,3090.5,3090.3,0.8179]
[1732105167824,3.34553724,3090.9,3089.9,0.7522]
[1732105168011,3.23624,3090.0,3089.3,0.7522]
[1732105168179,0.55,3089.7,3089.3,0.7522]
[1732105168384,3.23679,3089.5,3089.3,0.7522]
[1732105168629,0.55,3089.4,3089.3,0.7522]
[1732105168828,0.55,3089.1,3088.8,0.7522]
[1732105169183,3.78698,3089.3,3088.8,0.7522]
[1732105169504,0.55,3089.3,3088.9,0.64747]
[1732105169696,0.55,3089.1,3088.8,0.7522]
[1732105170195,3.78724,3089.1,3088.8,0.7522]
[1732105170430,3.23751,3088.8,3088.5,1.6189]
[1732105170630,0.55,3088.7,3088.5,1.6189]
[1732105170989,0.55,3088.8,3088.5,1.6189]
[1732105171212,0.55,3089.0,3088.5,2.26646]
[1732105171540,0.55,3089.0,3088.5,1.6189]
[1732105171743,0.55,3088.8,3088.5,1.6189]
[1732105171886,3.78758,3088.8,3088.5,1.6189]
[1732105172083,0.55,3088.6,3088.5,1.6189]
[1732105172301,3.78771,3088.6,3088.5,1.6189]
[1732105173345,4.490244,3088.6,3088.5,1.6189]
[1732105174336,3.78771,3088.6,3088.5,1.6189]
[1732105174634,0.55,3088.6,3088.5,1.6189]
[1732105175506,3.23744,3088.9,3088.5,1.6189]
[1732105176444,6.23735,3089.0,3088.5,1.6189]
[1732105176650,3.23735,3089.0,3088.5,1.6189]
[1732105176811,0.55,3088.9,3088.5,1.6189]
[1732105177202,0.55,3088.7,3088.5,1.6189]
[1732105177552,0.55,3088.6,3088.5,1.6189]
[1732105177895,3.78771,3088.6,3088.5,1.6189]
[1732105178127,4.490248,3088.6,3088.5,1.6189]
[1732105178350,3.78771,3088.6,3088.5,1.6189]
[1732105179331,3.35054719,3088.8,3088.5,1.6189]
[1732105179505,3.23757,3088.8,3088.5,1.6189]
[1732105179938,3.0,3088.9,3088.5,1.6189]
[1732105180741,3.78721,3089.1,3088.6,0.64753]
[1732105180914,0.55,3089.1,3088.6,0.7915]
[1732105181113,0.55,3089.1,3088.6,1.43903]
[1732105181405,3.23698,3089.3,3088.8,0.64748]
[1732105181764,3.23698,3089.3,3088.6,1.47139955]
[1732105181765,3.23729,3089.0,3088.7,0.305793]
[1732105181963,6.58741719,3089.4,3088.6,1.43902]
[1732105182121,3.23709,3089.2,3088.7,0.64751]
[1732105182323,3.23687,3089.4,3088.8,0.64749]
[1732105182567,6.58747953,3089.6,3088.9,0.64746]
[1732105182568,0.55,3089.3,3088.9,0.64746]
[1732105182724,0.55,3089.3,3088.8,0.82875934]
[1732105183350,3.78701,3089.3,3088.8,0.82875934]
[1732105183885,3.23713,3089.2,3088.8,0.18127934]
[1732105184034,3.78701,3089.3,3088.8,0.18127934]
[1732105184672,0.55,3089.0,3088.8,0.18127934]
[1732105184835,0.55,3089.0,3088.6,0.7915]
[1732105185268,0.55,3089.0,3088.7,1.6188]
[1732105185677,0.55,3088.8,3088.7,1.6188]
[1732105186358,3.23724,3089.1,3088.7,1.6188]
[1732105186359,3.78729,3089.0,3088.7,1.6188]
[1732105186939,3.35076953,3089.4,3088.7,1.6188]
[1732105186940,3.7871,3089.2,3088.7,1.6188]
[1732105187379,3.35076953,3089.4,3088.7,1.6188]
[1732105187380,0.55,3089.4,3088.7,2.50734]
[1732105187586,0.55,3089.2,3088.7,2.50733]
[1732105187734,0.55,3089.2,3088.8,0.329883]
[1732105188074,0.55,3089.3,3088.8,0.977363]
[1732105189293,0.55,3089.4,3088.9,0.64746]
[1732105189498,0.55,3089.4,3089.0,0.64745]
[1732105190784,0.55,3089.7,3089.2,0.64739]
[1732105190950,3.78657,3089.7,3089.1,1.44772]
[1732105191347,3.78657,3089.7,3089.2,0.64741]
[1732105191581,7.0232,3089.7,3089.1,1.02606593]
[1732105191891,0.55,3089.8,3089.1,0.8003]
[1732105192097,3.35717758,3090.0,3089.3,0.64739]
[1732105192250,3.35717758,3090.1,3089.5,0.64734]
[1732105192452,3.23603,3090.2,3089.5,0.64734]
[1732105192453,3.23603,3090.2,3089.6,0.762]
[1732105192761,3.23615,3090.1,3089.6,1.40932]
[1732105192961,6.59306758,3090.4,3089.8,0.64727]